bitfinex/quotes_BTCUSD_20240810
["timestamp","ask_amount","ask_price","bid_price","bid_amount"]
[1723284077702,0.011832,61012.0,61011.0,0.081952]
[1723284078108,0.007832,61012.0,61011.0,0.081952]
[1723284078310,0.018832,61012.0,61011.0,0.081952]
[1723284078671,0.007832,61012.0,61011.0,0.081952]
[1723284078872,0.018832,61012.0,61011.0,0.082952]
[1723284079327,0.011832,61012.0,61011.0,0.082952]
[1723284079533,0.011832,61012.0,61011.0,0.159852]
[1723284079734,0.018832,61012.0,61011.0,0.160852]
[1723284080194,0.018832,61012.0,61011.0,0.29696585]
[1723284080970,0.018832,61012.0,61011.0,0.46086985]
[1723284082972,0.018832,61012.0,61011.0,0.46086983]
[1723284084330,0.018832,61012.0,61011.0,0.62477383]
[1723284084547,0.018832,61012.0,61011.0,0.62476628]
[1723284084854,0.018832,61012.0,61011.0,0.46086228]
[1723284085624,0.018832,61012.0,61011.0,0.62476628]
[1723284085821,0.007832,61012.0,61011.0,0.62376628]
[1723284086074,0.001832,61012.0,61011.0,0.62276628]
[1723284086274,0.001832,61012.0,61011.0,0.62376628]
[1723284086517,0.008832,61012.0,61011.0,0.62376628]
[1723284086884,0.001832,61012.0,61011.0,0.62276628]
[1723284087043,0.001832,61012.0,61011.0,0.62576628]
[1723284087385,0.001832,61012.0,61011.0,0.46186228]
[1723284089372,0.001832,61012.0,61011.0,0.62576628]
[1723284089755,0.001832,61012.0,61011.0,0.46185897]
[1723284090226,0.001832,61012.0,61011.0,0.325756]
[1723284090547,0.001832,61012.0,61011.0,0.46185876]
[1723284090760,0.001832,61012.0,61011.0,0.325756]
[1723284091048,0.001832,61012.0,61011.0,0.46186285]
[1723284092068,0.001832,61012.0,61011.0,0.46186414]
[1723284095519,0.001832,61012.0,61011.0,0.62576814]
[1723284095935,0.001832,61012.0,61011.0,0.46186414]
[1723284096714,0.001832,61012.0,61011.0,0.63576814]
[1723284097126,0.001832,61012.0,61011.0,0.62576814]
[1723284097327,0.001832,61012.0,61011.0,0.46186414]
[1723284098048,0.001832,61012.0,61011.0,0.62576814]
[1723284098250,0.001832,61012.0,61011.0,0.46186414]
[1723284100220,0.001832,61012.0,61011.0,0.47186414]
[1723284100424,0.001832,61012.0,61011.0,0.46186414]
[1723284101228,0.000832,61012.0,61011.0,0.48966]
[1723284101429,0.000832,61012.0,61011.0,0.46285888]
[1723284101848,0.000832,61012.0,61011.0,0.4628589]
[1723284102051,0.000832,61012.0,61011.0,0.4598589]
[1723284102259,0.000832,61012.0,61011.0,0.4638589]
[1723284102876,0.000832,61012.0,61011.0,0.4598589]
[1723284103197,0.000832,61012.0,61011.0,0.4648589]
[1723284104962,0.000832,61012.0,61011.0,0.62876287]
[1723284105159,0.000832,61012.0,61011.0,0.46485887]
[1723284106837,0.000832,61012.0,61011.0,0.22405487]
[1723284110039,0.000832,61012.0,61011.0,0.14210287]
[1723284112093,0.000832,61012.0,61011.0,0.14211841]
[1723284112505,0.410587,61012.0,61011.0,0.14211841]
[1723284112703,0.60302696,61012.0,61011.0,0.006]
[1723284113106,0.71800192,61012.0,61011.0,0.006]
[1723284113310,0.79165674,61012.0,61011.0,0.006]
[1723284113513,0.95555874,61012.0,61011.0,0.006]
[1723284113910,0.88190392,61012.0,61011.0,0.006]
[1723284114250,0.88190392,61012.0,61011.0,0.001]
[1723284114450,0.9555497,61012.0,61011.0,0.001]
[1723284115007,0.08196,61005.0,61000.0,0.081967]
[1723284115223,0.081961,61004.0,61001.0,0.13614152]
[1723284115548,0.081961,61004.0,61000.0,0.081967]
[1723284115806,0.081961,61004.0,61001.0,0.13614152]
[1723284116001,0.081961,61004.0,61000.0,0.081967]
[1723284116157,0.081961,61004.0,61001.0,0.13614152]
[1723284116361,0.081961,61004.0,60997.0,0.163941]
[1723284116597,0.081961,61004.0,60999.0,0.081968]
[1723284116831,0.081961,61004.0,61000.0,0.13614189]
[1723284117034,0.1436,61003.0,60999.0,0.081968]
[1723284117474,0.1436,61003.0,61001.0,0.001]
[1723284117711,0.1436,61003.0,60994.0,0.0781]
[1723284117712,0.163932,61001.0,60990.0,0.32935006]
[1723284117915,0.161667,61000.0,60999.0,0.005]
[1723284118080,0.65334992,61000.0,60999.0,0.005]
[1723284118285,0.081979,60991.0,60990.0,0.0009152]
[1723284118424,0.389537,60991.0,60990.0,0.0009152]
[1723284118632,0.553495,60991.0,60990.0,0.0009152]
[1723284120457,0.554495,60991.0,60990.0,0.0009152]
[1723284120650,0.718453,60991.0,60990.0,0.0009152]
[1723284120812,0.93135842,60991.0,60990.0,0.0009152]
[1723284121012,1.11346108,60991.0,60990.0,0.0019152]
[1723284121216,1.12800937,60991.0,60990.0,0.0009152]
[1723284121401,1.24127459,60991.0,60990.0,0.0009152]
[1723284121603,1.23202867,60991.0,60990.0,0.0019152]
[1723284121832,1.39098686,60991.0,60990.0,0.0029152]
[1723284122030,1.5382766,60991.0,60990.0,0.0029152]
[1723284122338,1.39105508,60991.0,60990.0,0.0029152]
[1723284122559,1.40099559,60991.0,60990.0,0.0029152]
[1723284122961,1.98099559,60991.0,60990.0,0.0029152]
[1723284123252,2.54277147,60991.0,60990.0,0.0029152]
[1723284123470,2.12672947,60991.0,60990.0,0.0029152]
[1723284123793,1.40084247,60991.0,60990.0,0.0029152]
[1723284124174,1.47887813,60991.0,60990.0,0.0029152]
[1723284124600,1.35662204,60991.0,60990.0,0.0029152]
[1723284125178,1.42992547,60991.0,60990.0,0.0029152]
[1723284126010,1.59388347,60991.0,60990.0,0.0029152]
[1723284126212,1.35662204,60991.0,60990.0,0.0029152]
[1723284126418,1.40545787,60991.0,60990.0,0.0029152]
[1723284126619,1.56941587,60991.0,60990.0,0.0029152]
[1723284126874,1.59941587,60991.0,60990.0,0.0029152]
[1723284127078,1.59941587,60991.0,60980.0,0.0009163]
[1723284127079,1.073032,60981.0,60980.0,0.0009163]
[1723284127304,1.33984692,60981.0,60980.0,0.0009163]
[1723284128339,1.50883192,60981.0,60980.0,0.0019163]
[1723284128503,1.66271511,60981.0,60980.0,0.0019163]
[1723284128702,2.28271511,60981.0,60980.0,0.0019163]
[1723284128968,2.28271511,60981.0,60980.0,0.0029163]
[1723284129111,2.28271511,60981.0,60980.0,0.0019163]
[1723284129314,2.27271511,60981.0,60980.0,0.0019163]
[1723284129721,2.28246496,60981.0,60980.0,0.0019163]
[1723284129944,2.12858177,60981.0,60980.0,0.0019163]
[1723284130168,1.34959677,60981.0,60980.0,0.0009163]
[1723284130389,1.36359677,60981.0,60980.0,0.0019163]
[1723284130591,1.37759677,60981.0,60980.0,0.0019163]
[1723284130997,1.34959677,60981.0,60980.0,0.0009163]
[1723284131200,1.37759677,60981.0,60980.0,0.0019163]
[1723284131649,2.03759677,60981.0,60980.0,0.0019163]
[1723284131851,2.20174647,60981.0,60980.0,0.0019163]
[1723284132355,2.03759677,60981.0,60980.0,0.0019163]
[1723284133074,2.03753925,60981.0,60980.0,0.0019163]
[1723284135744,2.21152425,60981.0,60980.0,0.0019163]
[1723284135953,0.877804,60975.0,60974.0,0.0009163]
[1723284136126,1.35991892,60975.0,60974.0,0.0009163]
[1723284136329,1.66909646,60975.0,60974.0,0.0009163]
[1723284136467,1.50509546,60975.0,60974.0,0.0009163]
[1723284136669,1.67909646,60975.0,60974.0,0.0009163]
[1723284136908,2.31909646,60975.0,60974.0,0.0009163]
[1723284137120,1.37191892,60975.0,60974.0,0.0019163]
[1723284138096,1.38591892,60975.0,60974.0,0.0019163]
[1723284139554,0.85031792,60975.0,60974.0,0.0019163]
[1723284139775,0.78681792,60975.0,60974.0,0.0019163]
[1723284140924,0.76381792,60975.0,60974.0,0.0019163]
[1723284141245,0.86381792,60975.0,60974.0,0.0019163]
[1723284145625,0.84948995,60975.0,60974.0,0.0019163]
[1723284146151,0.50967403,60975.0,60974.0,0.0009163]
[1723284146335,0.52167403,60975.0,60974.0,0.0019163]
[1723284147025,0.52367403,60975.0,60974.0,0.0009163]
[1723284147258,0.53267403,60975.0,60974.0,0.0019163]
[1723284147471,0.51867403,60975.0,60974.0,0.0019163]
[1723284147625,0.52867403,60975.0,60974.0,0.0019163]
[1723284148008,0.51867403,60975.0,60974.0,0.0019163]
[1723284148194,0.53167403,60975.0,60974.0,0.0029163]
[1723284148395,0.69567503,60975.0,60974.0,0.0029163]
[1723284148826,0.70567503,60975.0,60974.0,0.0039163]
[1723284150066,0.68267503,60975.0,60974.0,0.0019163]
[1723284150224,0.67367503,60975.0,60974.0,0.0009163]
[1723284150431,0.67967503,60975.0,60974.0,0.0019163]
[1723284151080,0.67367503,60975.0,60974.0,0.0009163]
[1723284151286,0.67867503,60975.0,60974.0,0.0009163]
[1723284151602,0.98468995,60975.0,60974.0,0.0009163]
[1723284152191,0.90828995,60975.0,60974.0,0.0009163]
[1723284153201,1.28559095,60975.0,60974.0,0.0009163]
[1723284153364,1.16700885,60975.0,60974.0,0.0009163]
[1723284153564,1.2564101,60975.0,60974.0,0.0009163]
[1723284153977,1.2514101,60975.0,60974.0,0.0009163]
[1723284154834,1.2464101,60975.0,60974.0,0.0009163]
[1723284155069,1.2554101,60975.0,60974.0,0.0009163]
[1723284155223,1.26526269,60975.0,60974.0,0.0009163]
[1723284155429,1.5639746,60975.0,60974.0,0.0009163]
[1723284155850,1.42926369,60975.0,60974.0,0.0009163]
[1723284156254,1.42626369,60975.0,60974.0,0.0009163]
[1723284156460,1.41726369,60975.0,60974.0,0.0009163]
[1723284156656,1.38184354,60975.0,60974.0,0.0009163]
[1723284156918,1.43306047,60975.0,60974.0,0.0009163]
[1723284157058,1.42306047,60975.0,60974.0,0.0009163]
[1723284157258,1.43606047,60975.0,60974.0,0.0009163]
[1723284157462,1.43106047,60975.0,60974.0,0.0009163]
[1723284157735,1.44006047,60975.0,60974.0,0.0019163]
[1723284158544,1.44089247,60975.0,60974.0,0.0019163]
[1723284159092,2.20089247,60975.0,60974.0,0.0019163]
[1723284160209,2.36504217,60975.0,60974.0,0.0019163]
[1723284161074,2.43815637,60975.0,60974.0,0.0019163]
[1723284161515,2.46252777,60975.0,60974.0,0.0019163]
[1723284162470,2.36504217,60975.0,60974.0,0.0019163]
[1723284164168,2.31882524,60975.0,60974.0,0.0019163]
[1723284164369,2.4490849,60975.0,60974.0,0.0019163]
[1723284164751,0.584014,60974.0,60973.0,1e-08]
[1723284164929,0.584014,60974.0,60971.0,0.0001]
[1723284164930,0.082004,60972.0,60971.0,0.0001]
[1723284165140,0.94084329,60972.0,60971.0,0.0001]
[1723284165357,1.11001483,60972.0,60971.0,0.0001]
[1723284165558,1.28007123,60972.0,60971.0,0.0001]
[1723284165975,1.13261483,60972.0,60971.0,0.0001]
[1723284167410,1.15861483,60972.0,60971.0,0.0011]
[1723284167828,1.11245492,60972.0,60971.0,0.0011]
[1723284168059,1.11245492,60972.0,60949.0,0.090452]
[1723284168060,0.01,60971.0,60949.0,0.090452]
[1723284168293,1.09739792,60952.0,60949.0,0.009152]
[1723284168489,1.29162434,60952.0,60949.0,0.009152]
[1723284168681,1.26717128,60952.0,60949.0,0.009152]
[1723284168888,1.24417128,60952.0,60949.0,0.009152]
[1723284169042,1.19739792,60952.0,60949.0,0.009152]
[1723284169449,1.22039792,60952.0,60949.0,0.009152]
[1723284170420,1.24839792,60952.0,60949.0,0.009152]
[1723284170945,1.22039792,60952.0,60949.0,0.009152]
[1723284171124,1.24839792,60952.0,60949.0,0.009152]
[1723284172271,1.24839792,60952.0,60951.0,0.0010152]
[1723284172449,0.88903492,60952.0,60951.0,0.0010152]
[1723284172648,0.96420895,60952.0,60951.0,0.1434152]
[1723284172866,0.91511967,60952.0,60951.0,0.1434152]
[1723284173066,0.91511937,60952.0,60951.0,0.1434152]
[1723284173281,0.70222,60952.0,60951.0,0.1434152]
[1723284173480,0.274094,60952.0,60951.0,0.1434152]
[1723284173683,0.260094,60952.0,60951.0,0.1434152]
[1723284174326,0.274094,60952.0,60951.0,0.1434152]
[1723284174606,0.260094,60952.0,60951.0,0.1434152]
[1723284174770,0.438157,60952.0,60951.0,0.1434152]
[1723284175517,0.424157,60952.0,60951.0,0.1434152]
[1723284175719,0.437157,60952.0,60951.0,0.1434152]
[1723284176345,0.424157,60952.0,60951.0,0.1434152]
[1723284176516,0.428157,60952.0,60951.0,0.1434152]
[1723284176678,0.414157,60952.0,60951.0,0.1434152]
[1723284176863,0.428157,60952.0,60951.0,0.1434152]
[1723284177292,0.414157,60952.0,60951.0,0.1434152]
[1723284177488,0.420157,60952.0,60951.0,0.1434152]
[1723284178355,0.246094,60952.0,60951.0,0.1434152]
[1723284178753,0.410157,60952.0,60951.0,0.1434152]
[1723284178910,0.415157,60952.0,60951.0,0.1434152]
[1723284179294,0.251094,60952.0,60951.0,0.1434152]
[1723284179500,0.082031,60952.0,60951.0,0.1434152]
[1723284179760,0.082031,60952.0,60951.0,0.1534152]
[1723284179761,0.091031,60952.0,60951.0,0.1534152]
[1723284179967,0.091031,60952.0,60951.0,0.1434152]
[1723284179968,0.094031,60952.0,60951.0,0.1434152]
[1723284180138,0.085031,60952.0,60951.0,0.1534152]
[1723284180341,0.088031,60952.0,60951.0,0.1534152]
[1723284180725,0.090031,60952.0,60951.0,0.1534152]
[1723284181474,0.090031,60952.0,60951.0,0.1434152]
[1723284182371,0.008,60952.0,60951.0,0.2354482]
[1723284182519,0.008,60952.0,60951.0,0.37169551]
[1723284182900,0.008,60952.0,60951.0,0.53576151]
[1723284183103,0.008,60952.0,60951.0,0.71957643]
[1723284183509,0.008,60952.0,60951.0,0.88364243]
[1723284183940,0.49107874,60969.0,60967.0,0.0813]
[1723284184322,0.49107874,60969.0,60966.0,0.0611]
[1723284184323,0.57308674,60969.0,60968.0,0.1415]
[1723284184580,0.082008,60969.0,60968.0,0.1415]
[1723284184804,0.246025,60969.0,60968.0,0.1415]
[1723284186207,0.266025,60969.0,60968.0,0.1425]
[1723284186408,0.252025,60969.0,60968.0,0.1425]
[1723284186934,0.262025,60969.0,60968.0,0.1435]
[1723284187359,0.426042,60969.0,60968.0,0.1435]
[1723284187537,0.426042,60969.0,60968.0,0.079]
[1723284187742,0.426042,60969.0,60968.0,0.002]
[1723284190249,0.590059,60969.0,60968.0,0.002]
[1723284192415,0.75387392,60969.0,60968.0,0.002]
[1723284193913,0.94917392,60969.0,60968.0,0.002]
[1723284194119,1.40692672,60969.0,60968.0,0.002]
[1723284194339,1.42992672,60969.0,60968.0,0.002]
[1723284195113,1.45444463,60969.0,60968.0,0.002]
[1723284195279,1.47896253,60969.0,60968.0,0.002]
[1723284195480,1.50348043,60969.0,60968.0,0.002]
[1723284195824,1.49748043,60969.0,60968.0,0.001]
[1723284196035,1.49748043,60969.0,60961.0,0.077]
[1723284196036,0.41009,60962.0,60961.0,0.077]
[1723284196237,0.51009,60962.0,60961.0,0.077]
[1723284196708,0.674126,60962.0,60961.0,0.077]
[1723284196858,0.674126,60962.0,60956.0,0.077]
[1723284196859,0.082025,60957.0,60956.0,0.077]
[1723284197068,0.246075,60957.0,60956.0,0.077]
[1723284197554,0.410125,60957.0,60956.0,0.077]
[1723284198550,0.246075,60957.0,60956.0,0.077]
[1723284199484,0.08203,60953.0,60952.0,0.1415]
[1723284199658,0.24609,60953.0,60952.0,0.1415]
[1723284200426,0.41015,60953.0,60952.0,0.1415]
[1723284200634,0.41115,60953.0,60952.0,0.1415]
[1723284201073,0.24709,60953.0,60952.0,0.1415]
[1723284203513,0.24709,60953.0,60952.0,0.077]
[1723284204098,0.001,60953.0,60952.0,0.077]
[1723284204651,0.08303,60953.0,60952.0,0.077]
[1723284206532,0.001,60953.0,60952.0,0.077]
[1723284206738,0.001,60953.0,60952.0,0.385694]
[1723284207187,0.001,60953.0,60952.0,0.221631]
[1723284207422,0.001,60953.0,60952.0,0.385694]
[1723284207634,0.001,60953.0,60952.0,0.86006709]
[1723284207807,0.001,60953.0,60952.0,0.71599476]
[1723284208263,0.001,60953.0,60952.0,0.579757]
[1723284208450,0.001,60953.0,60952.0,0.71598923]
[1723284208573,0.001,60953.0,60952.0,0.69598923]
[1723284208776,0.000832,60971.0,60965.0,0.1404]
[1723284208996,0.000832,60971.0,60967.0,0.0626]
[1723284208997,0.49107874,60969.0,60967.0,0.0626]
[1723284209197,0.000832,60971.0,60968.0,0.0778]
[1723284209959,0.000832,60971.0,60970.0,0.222407]
[1723284209960,0.018832,60971.0,60970.0,0.222407]
[1723284210149,0.018832,60971.0,60970.0,0.52262895]
[1723284210349,0.007832,60971.0,60970.0,0.68664395]
[1723284210523,0.005832,60971.0,60970.0,0.68664395]
[1723284210728,0.006832,60971.0,60970.0,0.68664395]
[1723284210933,0.001832,60971.0,60970.0,0.68664395]
[1723284211622,0.001832,60971.0,60970.0,0.69664395]
[1723284212010,0.000832,60971.0,60970.0,0.69664395]
[1723284212202,0.005832,60971.0,60970.0,0.69664395]
[1723284212453,0.001832,60971.0,60970.0,0.70464395]
[1723284213068,0.002832,60971.0,60970.0,0.70764395]
[1723284213462,0.002832,60971.0,60970.0,0.72764395]
[1723284214738,0.002832,60971.0,60970.0,1.05547387]
[1723284214945,0.002832,60971.0,60970.0,1.05747387]
[1723284215705,0.002832,60971.0,60970.0,1.74148887]
[1723284216078,0.000832,60975.0,60974.0,0.744414]
[1723284216249,0.000832,60975.0,60974.0,1.04443587]
[1723284217254,0.000832,60975.0,60974.0,1.04843587]
[1723284217395,0.000832,60975.0,60974.0,1.05043587]
[1723284217597,0.000832,60975.0,60974.0,1.31443987]
[1723284218406,0.000832,60975.0,60974.0,1.47844387]
[1723284218628,0.000832,60991.0,60990.0,0.744263]
[1723284218831,0.000832,60991.0,60990.0,1.14423044]
[1723284218962,0.000832,60991.0,60990.0,1.01007792]
[1723284219157,0.000832,60991.0,60990.0,1.14620465]
[1723284219357,0.000832,60991.0,60990.0,1.31016565]
[1723284219771,0.007832,60991.0,60990.0,1.31016565]
[1723284220239,0.000832,60991.0,60990.0,1.31016565]
[1723284220428,0.000832,60991.0,60990.0,1.33516565]
[1723284221970,0.000832,60991.0,60990.0,1.33316565]
[1723284222208,0.000832,60991.0,60990.0,0.54240507]
[1723284222401,0.000832,60991.0,60990.0,0.008]
[1723284222402,0.001832,60991.0,60990.0,0.008]
[1723284223010,0.001832,60991.0,60990.0,0.012]
[1723284223158,0.000832,60991.0,60990.0,0.08598]
[1723284223351,0.001832,60991.0,60990.0,0.09298]
[1723284223775,0.001832,60991.0,60990.0,0.09598]
[1723284224210,0.001832,60991.0,60990.0,0.420902]
[1723284224420,0.001832,60991.0,60990.0,0.259941]
[1723284225056,0.001832,60991.0,60990.0,0.423902]
[1723284225280,0.000832,60991.0,60990.0,0.341141]
[1723284225655,0.000832,60991.0,60990.0,0.508102]
[1723284225857,0.000832,60991.0,60990.0,0.505102]
[1723284226313,0.000832,60991.0,60990.0,0.339141]
[1723284226656,0.000832,60991.0,60990.0,0.505102]
[1723284226896,0.001832,60991.0,60990.0,0.346141]
[1723284227096,0.001832,60991.0,60990.0,0.507102]
[1723284227494,0.002832,60991.0,60990.0,0.514102]
[1723284227698,0.002832,60991.0,60990.0,0.350141]
[1723284228581,0.002832,60991.0,60990.0,0.17618]
[1723284228787,0.002832,60991.0,60990.0,0.340141]
[1723284230340,0.002832,60991.0,60990.0,0.350141]
[1723284232953,0.002832,60991.0,60990.0,0.340141]
[1723284235093,0.002832,60991.0,60990.0,0.012]
[1723284235094,0.388469,60991.0,60990.0,0.012]
[1723284235642,0.552427,60991.0,60990.0,0.012]
[1723284235846,0.387469,60991.0,60990.0,0.007]
[1723284236049,0.30749,60991.0,60979.0,0.25033486]
[1723284236249,0.0766,60990.0,60979.0,0.33232986]
[1723284236453,0.163971,60987.0,60980.0,0.081993]
[1723284236654,0.081988,60984.0,60980.0,0.081993]
[1723284237049,0.163971,60987.0,60980.0,0.081993]
[1723284237251,0.081987,60985.0,60980.0,0.081993]
[1723284237412,0.081989,60984.0,60979.0,0.25033486]
[1723284237647,0.081989,60984.0,60979.0,0.33232986]
[1723284237858,0.082989,60984.0,60980.0,0.007]
[1723284238320,0.22169,60983.0,60980.0,0.007]
[1723284238559,0.081991,60982.0,60980.0,0.007]
[1723284239194,0.1397,60983.0,60979.0,0.33232886]
[1723284239419,0.001,60984.0,60980.0,0.005]
[1723284239760,0.002,60984.0,60982.0,0.081991]
[1723284239942,0.002,60984.0,60983.0,0.08199]
[1723284240149,0.001,60984.0,60983.0,0.08199]
[1723284241057,0.001,60984.0,60983.0,0.08299]
[1723284241637,0.081982,60989.0,60984.0,0.081988]
[1723284242292,0.000832,60991.0,60987.0,0.081984]
[1723284242496,0.000832,60991.0,60989.0,0.081981]
[1723284243465,0.007,60989.0,60988.0,0.081983]
[1723284243579,0.000832,60991.0,60988.0,0.21814077]
[1723284243779,0.001832,60991.0,60988.0,0.081983]
[1723284244002,0.08198,60990.0,60986.0,0.081985]
[1723284244195,0.001832,60991.0,60987.0,0.13615883]
[1723284244416,0.000832,60991.0,60986.0,0.081985]
[1723284244619,0.000832,60991.0,60987.0,0.1361617]
[1723284244841,0.000832,60991.0,60986.0,0.081985]
[1723284245050,0.004832,60991.0,60987.0,0.21814659]
[1723284245269,0.000832,60991.0,60987.0,0.081984]
[1723284245473,0.000832,60991.0,60986.0,0.163971]
[1723284245632,0.003832,60991.0,60989.0,0.081981]
[1723284245830,0.003832,60991.0,60988.0,0.002]
[1723284245831,0.000832,60991.0,60988.0,0.002]
[1723284246031,0.000832,60991.0,60988.0,0.093982]
[1723284246235,0.003832,60991.0,60988.0,0.081982]
[1723284246436,0.000832,60991.0,60987.0,0.163968]
[1723284246662,0.000832,60991.0,60989.0,0.081981]
[1723284246816,0.000832,60991.0,60990.0,0.00327884]
[1723284247021,0.003832,60991.0,60989.0,0.081981]
[1723284247901,0.003832,60991.0,60989.0,0.08198]
[1723284248830,0.000832,60991.0,60990.0,0.08525886]
[1723284249028,0.000832,60991.0,60990.0,0.08198]
[1723284249242,0.003832,60991.0,60990.0,0.09198]
[1723284249434,0.000832,60991.0,60990.0,0.08198]
[1723284249680,0.000832,60991.0,60988.0,0.01]
[1723284249910,0.003832,60991.0,60990.0,0.08198]
[1723284250108,0.000832,60991.0,60990.0,0.08198]
[1723284250330,0.000832,60991.0,60990.0,0.2181395]
[1723284250500,0.003832,60991.0,60990.0,0.2181395]
[1723284250706,0.003832,60991.0,60990.0,0.1361595]
[1723284252111,0.000832,60991.0,60990.0,0.1361595]
[1723284252470,0.003832,60991.0,60990.0,0.1361595]
[1723284252672,0.000832,60991.0,60990.0,0.1361595]
[1723284253021,0.003832,60991.0,60989.0,0.081981]
[1723284253343,0.003832,60991.0,60990.0,0.13615938]
[1723284253769,0.003832,60991.0,60990.0,0.14615938]
[1723284253981,0.000832,60991.0,60990.0,0.13615938]
[1723284254135,0.003832,60991.0,60990.0,0.13615938]
[1723284255642,0.000832,60991.0,60990.0,0.13615938]
[1723284255840,0.003832,60991.0,60990.0,0.13615938]
[1723284256040,0.003832,60991.0,60990.0,0.46437923]
[1723284256243,0.003832,60991.0,60990.0,0.72054023]
[1723284257780,0.003832,60991.0,60990.0,0.72052324]
[1723284258493,0.003832,60991.0,60990.0,0.88433816]
[1723284258650,0.003832,60991.0,60990.0,0.88105931]
[1723284259789,0.003832,60991.0,60990.0,0.86105931]
[1723284260756,0.003832,60991.0,60990.0,1.04502031]
[1723284260954,0.003832,60991.0,60990.0,1.04702031]
[1723284261154,0.003832,60991.0,60990.0,1.23496516]
[1723284261359,0.55127874,61010.0,60999.0,0.079]
[1723284261555,0.081966,61001.0,61000.0,0.13613236]
[1723284261816,0.163927,61003.0,61000.0,0.13613236]
[1723284262054,0.081965,61001.0,60997.0,0.08197]
[1723284262258,0.081964,61003.0,60999.0,0.081968]
[1723284262427,0.081964,61003.0,61000.0,0.13614039]
[1723284262602,0.163923,61005.0,60999.0,0.001]
[1723284262803,0.163923,61005.0,61000.0,0.13614035]
[1723284263024,0.014,61003.0,60996.0,0.01]
[1723284263228,0.011,61001.0,60999.0,0.081968]
[1723284264544,0.081963,61003.0,60999.0,0.081968]
[1723284264754,0.081963,61003.0,61000.0,0.001]
[1723284265502,0.095963,61003.0,60998.0,0.081969]
[1723284265644,0.011,61001.0,60999.0,0.13714034]
[1723284265843,0.011,61001.0,60999.0,0.001]
[1723284266044,0.095963,61003.0,61000.0,0.001]
[1723284266308,0.081963,61003.0,60998.0,0.081969]
[1723284266458,0.094963,61003.0,61000.0,0.001]
[1723284266661,0.108963,61003.0,61000.0,0.001]
[1723284266857,0.081964,61002.0,61000.0,0.001]
[1723284267886,0.013,61003.0,61000.0,0.001]
[1723284268107,0.094963,61003.0,61000.0,0.001]
[1723284268305,0.108963,61003.0,61000.0,0.002]
[1723284268638,0.108963,61003.0,60999.0,0.081968]
[1723284268639,0.081963,61003.0,60999.0,0.081968]
[1723284268842,0.094963,61003.0,61000.0,0.13613985]
[1723284268982,0.014,61002.0,61000.0,0.001]
[1723284269177,0.094963,61003.0,60999.0,0.081968]
[1723284269419,0.000832,61001.0,61000.0,0.13613985]
[1723284269620,0.000832,61001.0,61000.0,0.13813985]
[1723284269821,0.000832,61001.0,61000.0,0.13713985]
[1723284270023,0.000832,61001.0,61000.0,0.21910685]
[1723284270559,0.000832,61001.0,61000.0,0.35980685]
[1723284270940,0.000832,61001.0,61000.0,0.29540685]
[1723284271136,0.000832,61001.0,61000.0,0.21343985]
[1723284271795,0.000832,61001.0,61000.0,0.29540685]
[1723284271922,0.000832,61001.0,61000.0,0.29768511]
[1723284272269,0.014832,61001.0,61000.0,0.29868511]
[1723284272480,0.014832,61001.0,61000.0,0.29540685]
[1723284272682,0.025832,61001.0,61000.0,0.29640685]
[1723284273823,0.025832,61001.0,61000.0,0.160267]
[1723284273947,0.025832,61001.0,61000.0,0.29640308]
[1723284275615,0.025832,61001.0,61000.0,0.21443608]
[1723284275818,0.025832,61001.0,61000.0,0.22010308]
[1723284276019,0.025832,61001.0,61000.0,0.22010395]
[1723284276243,0.165432,61001.0,61000.0,0.13813695]
[1723284276605,0.087532,61001.0,61000.0,0.13813695]
[1723284276806,0.025832,61001.0,61000.0,0.13813695]
[1723284279249,0.025832,61001.0,61000.0,0.29640395]
[1723284279459,0.025832,61001.0,61000.0,0.160267]
[1723284279633,0.025832,61001.0,61000.0,0.29640308]
[1723284280850,0.025832,61001.0,61000.0,0.21443608]
[1723284281032,0.025832,61001.0,61000.0,0.13813608]
[1723284283056,0.025832,61001.0,61000.0,0.002]
[1723284283231,0.025832,61001.0,61000.0,0.13813695]
[1723284283724,0.025832,61001.0,61000.0,0.13813697]
[1723284286534,0.025832,61001.0,61000.0,0.002]
[1723284286735,0.025832,61001.0,61000.0,0.13813683]
[1723284287349,0.107797,61001.0,61000.0,0.13813683]
[1723284287548,0.334628,61001.0,61000.0,0.13813683]
[1723284287851,0.73829,61001.0,61000.0,0.13813683]
[1723284288113,0.73829,61001.0,61000.0,0.002]
[1723284288497,0.81194761,61001.0,61000.0,0.002]
[1723284288880,0.73829,61001.0,61000.0,0.002]
[1723284291288,0.81197735,61001.0,61000.0,0.002]
[1723284291491,0.73829,61001.0,61000.0,0.002]
[1723284292366,0.81197083,61001.0,61000.0,0.002]
[1723284292793,0.97578575,61001.0,61000.0,0.002]
[1723284292995,1.00210492,61001.0,61000.0,0.002]
[1723284293320,1.10031506,61001.0,61000.0,0.002]
[1723284293549,1.16603592,61001.0,61000.0,0.002]
[1723284293753,1.21403593,61001.0,61000.0,0.002]
[1723284294108,1.22603884,61001.0,61000.0,0.001]
[1723284294313,1.23903884,61001.0,61000.0,0.002]
[1723284294529,1.40296984,61001.0,61000.0,0.002]
[1723284294735,1.38896984,61001.0,61000.0,0.001]
[1723284295092,0.712542,60992.0,60991.0,0.0009141]
[1723284295305,1.23561192,60992.0,60991.0,0.0009141]
[1723284295521,1.45834579,60992.0,60991.0,0.0009141]
[1723284295690,1.71856214,60992.0,60991.0,0.0009141]
[1723284295922,1.70856214,60992.0,60991.0,0.0009141]
[1723284296606,1.71856214,60992.0,60991.0,0.0009141]
[1723284296808,1.72256214,60992.0,60991.0,0.0009141]
[1723284297011,1.53656692,60992.0,60991.0,0.0009141]
[1723284297220,1.58427894,60992.0,60991.0,0.0009141]
[1723284297419,1.73138361,60992.0,60991.0,0.0009141]
[1723284297797,1.56742861,60992.0,60991.0,0.0009141]
[1723284298003,1.58142861,60992.0,60991.0,0.0009141]
[1723284298210,1.43022029,60992.0,60991.0,0.0009141]
[1723284298413,1.41622029,60992.0,60991.0,0.0009141]